[Event "Marienbad Open-A1 2019"]
[Site "Marianske Lazne"]
[Date "2019.01.22"]
[Round "5"]
[White "Chernyshov, Konstantin"]
[Black "Ajay Krishna, S."]
[Result "1-0"]
[ECO "A45"]
[WhiteElo "2500"]
[BlackElo "2289"]
[Annotator "RC"]
[PlyCount "91"]
[EventDate "2019.01.17"]
[EventType "tourn"]
[EventCountry "CZE"]
[SourceTitle "playchess.com"]
[Source "ChessBase"]
[SourceQuality "1"]
[TimeControl "40/5400+30:1800+30"]

1. d4 {[%emt 0:01:51]} Nf6 {[%emt 0:00:00]} 2. Bg5 {[%emt 0:00:32]} Ne4 {[%emt 0:00:09]} 3. Bf4 {[%emt 0:00:25]} c5 {[%emt 0:00:10]} 4. f3 {[%emt 0:00:51]} Qa5+ {[%emt 0:00:09]} 5. c3 {[%emt 0:00:34]} Nf6 {[%emt 0:00:06]} 6. Nd2 {[%emt 0:00:33]} cxd4 {[%emt 0:00:30]} 7. Nc4 {[%emt 0:02:02]} Qd5 {[%emt 0:03:18]} 8. cxd4 {[%emt 0:00:42]} Nc6 {[%emt 0:02:31]} 9. e3 {[%emt 0:01:37]} Nh5 {[%emt 0:03:08]} 10. Be5 {[%emt 0:05:47]} Nxe5 {[%emt 0:00:50]} 11. dxe5 {[%emt 0:01:51]} Qxd1+ {[%emt 0:00:19]} 12. Rxd1 {[%emt 0:00:08]} g6 {[%emt 0:00:38]} 13. f4 {[%emt 0:01:27]} Ng7 {[%emt 0:02:02]} 14. Be2 {[%emt 0:03:57]} f6 {[%emt 0:06:44]} 15. exf6 {[%emt 0:02:42]} exf6 {[%emt 0:00:03]} 16. Bf3 {[%emt 0:00:39]} Rb8 {[%emt 0:02:17]} 17. Ne2 {[%emt 0:01:07]} Bc5 {[%emt 0:07:00]} 18. Nc3 {[%emt 0:11:24]} O-O {[%emt 0:07:43]} 19. Nd5 {[%emt 0:03:56]} b5 {[%emt 0:03:42]} 20. Na5 {[%emt 0:02:08]} a6 {[%emt 0:02:47]} 21. b4 {[%emt 0:02:38]} Ba7 {[%emt 0:01:08]} 22. g4 {[%emt 0:02:51]} Kh8 {[%emt 0:05:16]} 23. h4 {[%emt 0:06:13]} Bb6 {[%emt 0:07:56]} 24. Kf2 {[%emt 0:07:15]} Ne6 {[%emt 0:03:38]} 25. Rd2 {[%emt 0:05:07]} Nc7 {[%emt 0:03:54]} 26. Nxb6 {[%emt 0:01:54]} Rxb6 {[%emt 0:00:03]} 27. Rc1 {[%emt 0:02:10]} Ne6 {[%emt 0:00:07]} 28. Rdc2 {[%emt 0:00:25]} Rb8 {[%emt 0:00:04]} 29. Bd5 {[%emt 0:00:37]} d6 {[%emt 0:00:29]} 30. Nc6 {[%emt 0:00:30]} Rb6 {[%emt 0:01:24]} 31. Nd4 {[%emt 0:00:45]} Nxf4 {[%emt 0:00:23]} 32. Rxc8 {[%emt 0:01:09]} Nd3+ {[%emt 0:00:05]} 33. Kg3 {[%emt 0:02:36]} Rb8 {[%emt 0:00:03]} 34. Rxb8 {[%emt 0:00:56]} Rxb8 {[%emt 0:00:03]} 35. Rb1 {[%emt 0:00:26]} Rc8 {[%emt 0:00:19]} 36. Nc6 {[%emt 0:02:06]} f5 {[%emt 0:00:12]} 37. gxf5 {[%emt 0:02:16]} gxf5 {[%emt 0:00:02]} 38. Rd1 {[%emt 0:00:35]} Ne5 {[%emt 0:00:06]} 39. Nxe5 {[%emt 0:01:23]} dxe5 {[%emt 0:00:02]} 40. Bb3 {[%emt 0:00:27]} Rc3 {[%emt 0:00:07]} 41. Kf2 {[%emt 0:30:32]} Kg7 {[%emt 0:31:13]} 42. Rd5 {[%emt 0:00:48]} Kf6 {[%emt 0:00:17]} 43. Rd6+ {[%emt 0:00:08]} Kg7 {[%emt 0:00:03]} 44. h5 {[%emt 0:01:16]} e4 {[%emt 0:01:08]} 45. h6+ {[%emt 0:01:00]} Kf8 {[%emt 0:00:03]} 46. Rf6+ {[%emt 0:00:33]} 1-0

[Event "Marienbad Open-A1 2019"]
[Site "Marianske Lazne"]
[Date "2019.01.22"]
[Round "5"]
[White "Gumularz, Szymon"]
[Black "Rakesh Kumar Jena"]
[Result "1-0"]
[ECO "B90"]
[WhiteElo "2475"]
[BlackElo "2426"]
[Annotator "ChessBase"]
[PlyCount "97"]
[EventDate "2019.01.17"]
[EventType "tourn"]
[EventCountry "CZE"]
[SourceTitle "playchess.com"]
[Source "ChessBase"]
[SourceQuality "1"]
[TimeControl "40/5400+30:1800+30"]

1. e4 {[%emt 0:00:03]} c5 {[%emt 0:03:18]} 2. Nf3 {[%emt 0:00:09]} d6 {[%emt 0:00:04]} 3. d4 {[%emt 0:00:05]} cxd4 {[%emt 0:00:08]} 4. Nxd4 {[%emt 0:00:05]} Nf6 {[%emt 0:00:04]} 5. Nc3 {[%emt 0:00:07]} a6 {[%emt 0:00:05]} 6. h3 {[%emt 0:00:13]} g6 {[%emt 0:00:05]} 7. g4 {[%emt 0:03:36]} Bg7 {[%emt 0:00:17]} 8. Bg2 {[%emt 0:00:15]} O-O {[%emt 0:00:44]} 9. Be3 {[%emt 0:00:04]} Nc6 {[%emt 0:01:06]} 10. Qd2 {[%emt 0:00:56]} Bd7 {[%emt 0:05:25]} 11. O-O-O {[%emt 0:00:56]} b5 {[%emt 0:11:12]} 12. Kb1 {[%emt 0:01:25]} b4 {[%emt 0:09:46]} 13. Nd5 {[%emt 0:00:47]} Rb8 {[%emt 0:03:40]} 14. Nxc6 {[%emt 0:17:57]} Bxc6 {[%emt 0:00:07]} 15. Bd4 {[%emt 0:00:19]} Bxd5 {[%emt 0:01:41]} 16. exd5 {[%emt 0:00:55]} Qa5 {[%emt 0:02:44]} 17. Rhe1 {[%emt 0:05:53]} Rb5 {[%emt 0:05:45]} 18. Ka1 {[%emt 0:10:43]} Rc8 {[%emt 0:11:38]} 19. g5 {[%emt 0:11:42]} Nh5 {[%emt 0:05:14]} 20. Bxg7 {[%emt 0:10:00]} Nxg7 {[%emt 0:00:13]} 21. Rxe7 {[%emt 0:00:36]} Nf5 {[%emt 0:01:52]} 22. Re2 {[%emt 0:02:06]} Qa4 {[%emt 0:12:21]} 23. b3 {[%emt 0:10:05]} Qa3 {[%emt 0:00:36]} 24. Qc1 {[%emt 0:00:10]} Qxc1+ {[%emt 0:01:46]} 25. Rxc1 {[%emt 0:00:05]} Rbc5 {[%emt 0:00:06]} 26. Kb2 {[%emt 0:02:01]} Nd4 {[%emt 0:01:39]} 27. Rd2 {[%emt 0:00:48]} Nb5 {[%emt 0:00:10]} 28. Bf1 {[%emt 0:08:56]} Nc3 {[%emt 0:00:10]} 29. Bc4 {[%emt 0:00:23]} Ra5 {[%emt 0:05:19]} 30. Ra1 {[%emt 0:00:20]} Na4+ {[%emt 0:03:14]} 31. Kc1 {[%emt 0:08:12]} Nb6 {[%emt 0:00:38]} 32. Rd4 {[%emt 0:00:26]} Nxc4 {[%emt 0:06:10]} 33. Rxc4 {[%emt 0:00:24]} Re8 {[%emt 0:04:48]} 34. Rxb4 {[%emt 0:01:18]} Rxd5 {[%emt 0:00:06]} 35. f4 {[%emt 0:02:34]} Rc5 {[%emt 0:02:02]} 36. Rd4 {[%emt 0:01:29]} Re1+ {[%emt 0:01:44]} 37. Kb2 {[%emt 0:00:15]} Re2 {[%emt 0:00:07]} 38. Rc1 {[%emt 0:00:07]} d5 {[%emt 0:00:06]} 39. b4 {[%emt 0:00:09]} Rb5 {[%emt 0:00:37]} 40. a4 {[%emt 0:00:19]} Rb8 {[%emt 0:01:27]} 41. Kb3 {[%emt 0:30:13]} Re3+ {[%emt 0:31:09]} 42. c3 {[%emt 0:00:40]} Rxh3 {[%emt 0:00:05]} 43. Rxd5 {[%emt 0:00:07]} Rf3 {[%emt 0:00:09]} 44. Rcd1 {[%emt 0:00:00]} Rxf4 {[%emt 0:00:00]} 45. Rd8+ {[%emt 0:00:00]} Rxd8 {[%emt 0:00:00]} 46. Rxd8+ {[%emt 0:00:00]} Kg7 {[%emt 0:00:00]} 47. b5 {[%emt 0:00:00]} axb5 {[%emt 0:00:00]} 48. axb5 {[%emt 0:00:00]} Rf5 {[%emt 0:00:00]} 49. c4 {[%emt 0:00:00]} 1-0

[Event "Marienbad Open-A1 2019"]
[Site "Marianske Lazne"]
[Date "2019.01.22"]
[Round "5"]
[White "Simek, Petr"]
[Black "Plat, Vojtech"]
[Result "1/2-1/2"]
[ECO "D71"]
[WhiteElo "2330"]
[BlackElo "2552"]
[Annotator "RC"]
[PlyCount "46"]
[EventDate "2019.01.17"]
[EventType "tourn"]
[EventCountry "CZE"]
[SourceTitle "playchess.com"]
[Source "ChessBase"]
[SourceQuality "1"]
[TimeControl "40/5400+30:1800+30"]

1. d4 {[%emt 0:00:00]} Nf6 {[%emt 0:05:32]} 2. c4 {[%emt 0:00:00]} g6 {[%emt 0:00:13]} 3. g3 {[%emt 0:00:00]} Bg7 {[%emt 0:00:18]} 4. Bg2 {[%emt 0:00:00]} d5 {[%emt 0:00:00]} 5. cxd5 {[%emt 0:00:00]} Nxd5 {[%emt 0:00:10]} 6. Nf3 {[%emt 0:00:07]} Nb6 {[%emt 0:00:06]} 7. Nc3 {[%emt 0:00:11]} Nc6 {[%emt 0:00:06]} 8. e3 {[%emt 0:00:06]} e5 {[%emt 0:00:45]} 9. d5 {[%emt 0:00:09]} Na5 {[%emt 0:00:06]} 10. O-O {[%emt 0:03:00]} O-O {[%emt 0:00:24]} 11. b3 {[%emt 0:01:12]} e4 {[%emt 0:01:23]} 12. Nd4 {[%emt 0:00:07]} Nxd5 {[%emt 0:01:09]} 13. Nxe4 {[%emt 0:00:06]} b6 {[%emt 0:01:43]} 14. b4 {[%emt 0:01:15]} Nxb4 {[%emt 0:00:50]} 15. Ba3 {[%emt 0:00:12]} c5 {[%emt 0:00:52]} 16. Nxc5 bxc5 {[%emt 0:00:03]} 17. Bxa8 {[%emt 0:00:25]} Ba6 {[%emt 0:00:35]} 18. Bg2 {[%emt 0:00:31]} Bxf1 {[%emt 0:01:07]} 19. Bxf1 {[%emt 0:00:19]} cxd4 {[%emt 0:04:38]} 20. Bxb4 {[%emt 0:00:17]} Re8 {[%emt 0:00:50]} 21. Rc1 {[%emt 0:11:08]} Nb7 {[%emt 0:00:17]} 22. exd4 {[%emt 0:28:44]} Bxd4 {[%emt 0:00:40]} 23. Qf3 {[%emt 0:01:14]} Nd6 {[%emt 0:03:38]} 1/2-1/2

[Event "Marienbad Open-A1 2019"]
[Site "Marianske Lazne"]
[Date "2019.01.22"]
[Round "5"]
[White "Oboladze, Luka"]
[Black "Cernousek, Lukas"]
[Result "1/2-1/2"]
[ECO "B13"]
[WhiteElo "2295"]
[BlackElo "2427"]
[Annotator "NA RC"]
[PlyCount "124"]
[EventDate "2019.01.17"]
[EventType "tourn"]
[EventCountry "CZE"]
[SourceTitle "playchess.com"]
[Source "ChessBase"]
[SourceQuality "1"]
[TimeControl "40/5400+30:1800+30"]

1. e4 {[%emt 0:00:00]} c6 {[%emt 0:00:00]} 2. d4 {[%emt 0:00:00]} d5 {[%emt 0:00:00]} 3. exd5 {[%emt 0:00:00]} cxd5 {[%emt 0:00:00]} 4. Bd3 {[%emt 0:00:00]} Nc6 {[%emt 0:00:00]} 5. c3 {[%emt 0:00:01]} Qc7 {[%emt 0:00:23]} 6. h3 {[%emt 0:00:15]} Nf6 {[%emt 0:06:49]} 7. Nf3 {[%emt 0:00:22]} g6 {[%emt 0:02:50]} 8. Na3 {[%emt 0:03:47]} Bf5 {[%emt 0:04:12]} 9. Nc2 {[%emt 0:00:52]} Bxd3 {[%emt 0:07:00]} 10. Qxd3 {[%emt 0:00:07]} Bg7 {[%emt 0:00:06]} 11. O-O {[%emt 0:01:13]} O-O {[%emt 0:03:35]} 12. Re1 {[%emt 0:01:49]} Rfd8 {[%emt 0:07:49]} 13. Bg5 {[%emt 0:02:13]} h6 {[%emt 0:05:27]} 14. Bh4 {[%emt 0:14:10]} Nh5 {[%emt 0:00:13]} 15. Ne5 {[%emt 0:01:19]} Nxe5 {[%emt 0:17:02]} 16. dxe5 {[%emt 0:00:20]} Bxe5 {[%emt 0:00:40]} 17. Qe3 {[%emt 0:20:58]} Bf4 {[%emt 0:09:12]} 18. Qxe7 {[%emt 0:01:40]} g5 {[%emt 0:00:10]} 19. Qxc7 {[%emt 0:00:39]} Bxc7 {[%emt 0:00:30]} 20. g4 {[%emt 0:00:04]} Nf4 {[%emt 0:01:30]} 21. Bg3 {[%emt 0:00:06]} Nxh3+ {[%emt 0:02:21]} 22. Kg2 {[%emt 0:00:08]} Nf4+ {[%emt 0:00:16]} 23. Bxf4 {[%emt 0:00:04]} Bxf4 {[%emt 0:00:05]} 24. Nd4 {[%emt 0:10:09]} Bd6 {[%emt 0:13:32]} 25. Nf5 {[%emt 0:01:57]} Bf8 {[%emt 0:00:05]} 26. Rad1 {[%emt 0:02:07]} Rd7 {[%emt 0:08:48]} 27. Rd3 {[%emt 0:01:38]} Rad8 {[%emt 0:03:45]} 28. Red1 {[%emt 0:02:00]} f6 {[%emt 0:05:28]} 29. c4 {[%emt 0:01:19]} d4 {[%emt 0:00:26]} 30. Rxd4 {[%emt 0:00:08]} Rxd4 {[%emt 0:00:09]} 31. Rxd4 {[%emt 0:00:04]} Rxd4 {[%emt 0:01:16]} 32. Nxd4 {[%emt 0:00:03]} Bc5 {[%emt 0:01:29]} 33. Nb3 {[%emt 0:06:31]} Bb6 {[%emt 0:00:19]} 34. Kf3 {[%emt 0:02:13]} Kf7 {[%emt 0:00:03]} 35. c5 {[%emt 0:00:48]} Bc7 {[%emt 0:00:02]} 36. Ke4 {[%emt 0:00:20]} Kg6 {[%emt 0:00:40]} 37. Nd4 {[%emt 0:04:12]} h5 {[%emt 0:00:02]} 38. gxh5+ {[%emt 0:00:48]} Kxh5 {[%emt 0:00:01]} 39. b4 {[%emt 0:00:17]} Kg6 {[%emt 0:02:41]} 40. b5 {[%emt 0:21:05]} Kf7 {[%emt 0:00:21]} 41. Kf5 {[%emt 0:05:17]} Ke7 {[%emt 0:08:32]} 42. c6 {[%emt 0:07:35]} bxc6 {[%emt 0:12:25]} 43. Nxc6+ {[%emt 0:07:17]} Kd6 {[%emt 0:00:02]} 44. Nxa7 {[%emt 0:10:16]} Kc5 {[%emt 0:00:06]} 45. Kxf6 {[%emt 0:01:50]} g4 {[%emt 0:00:08]} 46. a4 {[%emt 0:03:50]} Kb4 {[%emt 0:00:14]} 47. Nc8 {[%emt 0:00:46]} Kxa4 {[%emt 0:05:23]} 48. b6 {[%emt 0:00:06]} g3 {[%emt 0:00:11]} 49. fxg3 {[%emt 0:00:28]} Bxg3 {[%emt 0:00:02]} 50. Ke6 {[%emt 0:00:25]} Kb5 {[%emt 0:00:08]} 51. Kd7 {[%emt 0:00:31]} Kc5 {[%emt 0:02:58]} 52. b7 {[%emt 0:00:14]} Bh2 {[%emt 0:00:09]} 53. Ne7 {[%emt 0:00:14]} Kb6 {[%emt 0:00:09]} 54. Kc8 {[%emt 0:00:05]} Bg3 {[%emt 0:00:07]} 55. Nf5 {[%emt 0:01:14]} Bh2 {[%emt 0:00:07]} 56. Ne3 {[%emt 0:00:13]} Kc6 {[%emt 0:00:17]} 57. Nc4 {[%emt 0:00:22]} Bg3 {[%emt 0:00:12]} 58. Nb2 {[%emt 0:01:25]} Bh2 {[%emt 0:00:10]} 59. Nd1 {[%emt 0:00:49]} Bg3 {[%emt 0:00:09]} 60. Ne3 {[%emt 0:00:09]} Bh2 {[%emt 0:00:03]} 61. Nf5 {[%emt 0:00:50]} Kb6 {[%emt 0:00:19]} 62. Nd4 {[%emt 0:00:44]} Bg3 {[%emt 0:00:03]} 1/2-1/2

[Event "Marienbad Open-A1 2019"]
[Site "Marianske Lazne"]
[Date "2019.01.23"]
[Round "6"]
[White "Simek, Petr"]
[Black "Oboladze, Luka"]
[Result "1/2-1/2"]
[ECO "A61"]
[WhiteElo "2330"]
[BlackElo "2295"]
[Annotator "NA"]
[PlyCount "106"]
[EventDate "2019.01.17"]
[EventType "tourn"]
[EventCountry "CZE"]
[SourceTitle "playchess.com"]
[Source "ChessBase"]
[SourceQuality "1"]
[TimeControl "40/5400+30:1800+30"]

1. d4 {[%emt 0:00:00]} Nf6 {[%emt 0:00:00]} 2. c4 {[%emt 0:00:00]} e6 {[%emt 0:00:00]} 3. Nf3 {[%emt 0:00:00]} c5 {[%emt 0:00:27]} 4. d5 {[%emt 0:00:00]} exd5 {[%emt 0:00:04]} 5. cxd5 {[%emt 0:00:00]} d6 {[%emt 0:00:02]} 6. Nc3 {[%emt 0:00:01]} g6 {[%emt 0:00:05]} 7. Nd2 {[%emt 0:00:22]} Bg7 {[%emt 0:00:15]} 8. e4 {[%emt 0:00:23]} O-O {[%emt 0:00:17]} 9. Be2 {[%emt 0:00:02]} Na6 {[%emt 0:04:31]} 10. O-O {[%emt 0:00:12]} Nc7 {[%emt 0:00:17]} 11. a4 {[%emt 0:01:07]} Re8 {[%emt 0:10:59]} 12. Re1 {[%emt 0:02:37]} Rb8 {[%emt 0:04:42]} 13. h3 {[%emt 0:03:25]} b6 {[%emt 0:08:03]} 14. Bb5 {[%emt 0:29:08]} Re7 {[%emt 0:13:44]} 15. Nf3 {[%emt 0:02:06]} Nxb5 {[%emt 0:22:21]} 16. axb5 {[%emt 0:00:05]} Qe8 {[%emt 0:02:02]} 17. e5 {[%emt 0:09:14]} Nd7 {[%emt 0:02:35]} 18. Bg5 {[%emt 0:13:17]} f6 {[%emt 0:00:46]} 19. exf6 {[%emt 0:00:05]} Nxf6 {[%emt 0:03:17]} 20. Rxa7 {[%emt 0:12:19]} Rxe1+ {[%emt 0:00:35]} 21. Qxe1 {[%emt 0:01:46]} Qxe1+ {[%emt 0:02:35]} 22. Nxe1 {[%emt 0:00:03]} Bb7 {[%emt 0:03:05]} 23. Nc2 {[%emt 0:03:02]} Ne8 {[%emt 0:01:49]} 24. Bf4 {[%emt 0:01:34]} Bxc3 {[%emt 0:01:07]} 25. bxc3 {[%emt 0:00:03]} Bxd5 {[%emt 0:00:07]} 26. Ne3 {[%emt 0:00:17]} Rb7 {[%emt 0:04:26]} 27. Ra8 {[%emt 0:01:53]} Bf7 {[%emt 0:00:05]} 28. Bxd6 {[%emt 0:00:17]} Kg7 {[%emt 0:01:29]} 29. Be5+ {[%emt 0:00:12]} Kf8 {[%emt 0:00:04]} 30. Bd6+ {[%emt 0:01:38]} Kg7 {[%emt 0:00:05]} 31. Be5+ {[%emt 0:00:03]} Kf8 {[%emt 0:00:04]} 32. f4 {[%emt 0:00:03]} Ke7 {[%emt 0:00:19]} 33. Kf2 {[%emt 0:00:20]} Nd6 {[%emt 0:03:06]} 34. Bxd6+ {[%emt 0:01:44]} Kxd6 {[%emt 0:00:01]} 35. g4 {[%emt 0:00:06]} Ke7 {[%emt 0:05:40]} 36. h4 {[%emt 0:03:18]} Rd7 {[%emt 0:03:43]} 37. Ke2 {[%emt 0:01:25]} c4 {[%emt 0:02:45]} 38. Rb8 {[%emt 0:00:17]} Rd3 {[%emt 0:00:26]} 39. Rb7+ {[%emt 0:00:15]} Kf8 {[%emt 0:00:05]} 40. Rxb6 {[%emt 0:03:26]} Rxc3 {[%emt 0:00:04]} 41. Rc6 {[%emt 0:30:13]} Rb3 {[%emt 0:30:19]} 42. b6 {[%emt 0:00:09]} Be8 {[%emt 0:00:00]} 43. Rc8 {[%emt 0:00:00]} Rxb6 {[%emt 0:00:00]} 44. Nxc4 {[%emt 0:00:00]} Rc6 {[%emt 0:00:00]} 45. Rxc6 {[%emt 0:00:00]} Bxc6 {[%emt 0:00:00]} 46. Ne5 {[%emt 0:00:00]} Be4 {[%emt 0:00:00]} 47. Ke3 {[%emt 0:00:00]} Bb1 {[%emt 0:00:00]} 48. Kd4 {[%emt 0:00:00]} Ke7 {[%emt 0:00:00]} 49. Nc6+ {[%emt 0:00:00]} Kf6 {[%emt 0:00:00]} 50. Kd5 {[%emt 0:00:00]} h5 {[%emt 0:00:00]} 51. Ne5 {[%emt 0:00:00]} hxg4 {[%emt 0:00:00]} 52. Nxg4+ {[%emt 0:00:00]} Kf5 {[%emt 0:00:00]} 53. Ne5 {[%emt 0:00:00]} Kxf4 1/2-1/2

[Event "Marienbad Open-A1 2019"]
[Site "Marianske Lazne"]
[Date "2019.01.23"]
[Round "6"]
[White "Ajay Krishna, S."]
[Black "Voloshin, Leonid"]
[Result "1/2-1/2"]
[ECO "A05"]
[WhiteElo "2289"]
[BlackElo "2381"]
[Annotator "NA"]
[PlyCount "40"]
[EventDate "2019.01.17"]
[EventType "tourn"]
[EventCountry "CZE"]
[SourceTitle "playchess.com"]
[Source "ChessBase"]
[SourceQuality "1"]
[TimeControl "40/5400+30:1800+30"]

1. Nf3 {[%emt 0:00:11]} Nf6 {[%emt 0:00:32]} 2. c4 {[%emt 0:00:07]} e6 {[%emt 0:02:04]} 3. g3 {[%emt 0:00:24]} b6 {[%emt 0:00:17]} 4. Bg2 {[%emt 0:00:13]} Bb7 {[%emt 0:00:05]} 5. O-O {[%emt 0:00:26]} Be7 {[%emt 0:00:06]} 6. Nc3 {[%emt 0:00:05]} O-O {[%emt 0:00:13]} 7. Re1 {[%emt 0:00:16]} d5 {[%emt 0:01:35]} 8. cxd5 {[%emt 0:00:30]} Nxd5 {[%emt 0:02:47]} 9. e4 {[%emt 0:06:37]} Nxc3 {[%emt 0:02:41]} 10. bxc3 {[%emt 0:00:06]} c5 {[%emt 0:01:44]} 11. d4 {[%emt 0:00:16]} Nd7 {[%emt 0:13:54]} 12. Bf4 {[%emt 0:10:25]} Re8 {[%emt 0:03:16]} 13. h4 {[%emt 0:11:17]} Bf6 {[%emt 0:09:27]} 14. Bg5 {[%emt 0:14:50]} Bxg5 {[%emt 0:16:54]} 15. hxg5 {[%emt 0:03:26]} Qe7 {[%emt 0:00:56]} 16. Qd2 {[%emt 0:04:48]} cxd4 {[%emt 0:04:42]} 17. cxd4 {[%emt 0:00:03]} Rac8 {[%emt 0:00:06]} 18. a4 {[%emt 0:02:47]} a6 {[%emt 0:02:30]} 19. Qb2 {[%emt 0:04:59]} Red8 {[%emt 0:03:30]} 20. d5 {[%emt 0:05:00]} Rc4 1/2-1/2

[Event "Marienbad Open-A1 2019"]
[Site "Marianske Lazne"]
[Date "2019.01.24"]
[Round "7"]
[White "Chernyshov, Konstantin"]
[Black "Simek, Petr"]
[Result "1/2-1/2"]
[ECO "D02"]
[WhiteElo "2500"]
[BlackElo "2330"]
[Annotator "ChessBase"]
[PlyCount "107"]
[EventDate "2019.01.17"]
[EventType "tourn"]
[EventCountry "CZE"]
[SourceTitle "playchess.com"]
[Source "ChessBase"]
[SourceQuality "1"]
[TimeControl "40/5400+30:1800+30"]

1. Nf3 {[%emt 0:00:00]} d5 {[%emt 0:00:00]} 2. d4 {[%emt 0:00:28]} Nf6 {[%emt 0:00:00]} 3. Bf4 {[%emt 0:00:20]} c5 {[%emt 0:00:07]} 4. e3 {[%emt 0:03:46]} Nc6 {[%emt 0:00:06]} 5. Nc3 {[%emt 0:00:32]} cxd4 {[%emt 0:32:18]} 6. Nxd4 {[%emt 0:07:11]} a6 {[%emt 0:08:59]} 7. Be2 {[%emt 0:06:26]} g6 {[%emt 0:02:04]} 8. e4 {[%emt 0:06:43]} Bg7 {[%emt 0:12:53]} 9. e5 {[%emt 0:04:44]} Nd7 {[%emt 0:00:14]} 10. Nxd5 {[%emt 0:04:15]} Qa5+ {[%emt 0:01:34]} 11. Nc3 {[%emt 0:00:48]} Ndxe5 {[%emt 0:01:30]} 12. Nb3 {[%emt 0:02:19]} Qb4 {[%emt 0:01:21]} 13. Qc1 {[%emt 0:00:18]} Be6 {[%emt 0:09:06]} 14. O-O {[%emt 0:03:37]} O-O {[%emt 0:00:48]} 15. Re1 {[%emt 0:11:46]} Bxb3 {[%emt 0:03:47]} 16. axb3 {[%emt 0:00:33]} Rfd8 {[%emt 0:00:13]} 17. Ra4 {[%emt 0:03:03]} Qb6 {[%emt 0:00:18]} 18. Re4 {[%emt 0:02:50]} e6 {[%emt 0:11:22]} 19. Bh6 {[%emt 0:05:13]} f5 {[%emt 0:00:56]} 20. Bxg7 {[%emt 0:05:58]} Kxg7 {[%emt 0:02:17]} 21. Re3 {[%emt 0:02:51]} Rd6 {[%emt 0:01:23]} 22. Na4 {[%emt 0:05:48]} Qa5 {[%emt 0:01:02]} 23. c4 {[%emt 0:01:03]} Re8 {[%emt 0:00:53]} 24. f4 {[%emt 0:02:43]} Nd7 {[%emt 0:00:55]} 25. Bf3 {[%emt 0:00:35]} Kf6 {[%emt 0:02:13]} 26. Rd1 {[%emt 0:05:43]} Rxd1+ {[%emt 0:00:11]} 27. Qxd1 {[%emt 0:00:05]} Qc7 {[%emt 0:02:47]} 28. Qd2 {[%emt 0:00:22]} Kf7 {[%emt 0:00:37]} 29. Rd3 {[%emt 0:04:22]} Ndb8 {[%emt 0:00:40]} 30. Qe3 {[%emt 0:01:52]} Nb4 {[%emt 0:02:23]} 31. Rd2 {[%emt 0:01:27]} N8c6 {[%emt 0:00:10]} 32. Nc5 {[%emt 0:01:53]} Re7 {[%emt 0:00:12]} 33. g3 {[%emt 0:01:20]} b6 {[%emt 0:01:20]} 34. Na4 {[%emt 0:02:07]} b5 {[%emt 0:00:11]} 35. cxb5 {[%emt 0:01:02]} axb5 {[%emt 0:00:04]} 36. Nc3 {[%emt 0:00:03]} Qa5 {[%emt 0:00:59]} 37. Qc5 {[%emt 0:00:56]} Qa7 {[%emt 0:01:22]} 38. Qxa7 {[%emt 0:00:37]} Nxa7 {[%emt 0:00:19]} 39. Rd6 {[%emt 0:00:18]} Rc7 {[%emt 0:00:13]} 40. Rb6 {[%emt 0:00:47]} Nd3 {[%emt 0:00:29]} 41. Be2 {[%emt 0:31:28]} Nc1 {[%emt 0:07:06]} 42. b4 {[%emt 0:00:00]} Nxe2+ {[%emt 0:02:45]} 43. Nxe2 {[%emt 0:00:00]} Nc8 {[%emt 0:00:14]} 44. Rxb5 {[%emt 0:00:00]} Rc2 {[%emt 0:00:03]} 45. Rb7+ {[%emt 0:00:00]} Kf6 {[%emt 0:00:08]} 46. Nd4 {[%emt 0:00:00]} Rxb2 {[%emt 0:00:05]} 47. Nc6 {[%emt 0:00:00]} Nd6 {[%emt 0:00:50]} 48. Rd7 {[%emt 0:00:00]} Nf7 {[%emt 0:00:13]} 49. h4 {[%emt 0:00:00]} h6 {[%emt 0:00:14]} 50. Rb7 {[%emt 0:00:00]} g5 {[%emt 0:07:40]} 51. Rd7 {[%emt 0:00:00]} gxf4 {[%emt 0:01:22]} 52. gxf4 {[%emt 0:00:00]} h5 {[%emt 0:00:05]} 53. Rd4 {[%emt 0:00:00]} Kg7 {[%emt 0:06:25]} 54. Rd7 {[%emt 0:00:00]} 1/2-1/2

[Event "Marienbad Open-A1 2019"]
[Site "Marianske Lazne"]
[Date "2019.01.24"]
[Round "7"]
[White "Gumularz, Szymon"]
[Black "Ajay Krishna, S."]
[Result "1-0"]
[ECO "B90"]
[WhiteElo "2475"]
[BlackElo "2289"]
[Annotator "ChessBase"]
[PlyCount "104"]
[EventDate "2019.01.17"]
[EventType "tourn"]
[EventCountry "CZE"]
[SourceTitle "playchess.com"]
[Source "ChessBase"]
[SourceQuality "1"]
[TimeControl "40/5400+30:1800+30"]

1. e4 {[%emt 0:00:00]} c5 {[%emt 0:03:58]} 2. Nf3 {[%emt 0:00:00]} d6 {[%emt 0:00:08]} 3. d4 {[%emt 0:00:00]} cxd4 {[%emt 0:00:03]} 4. Nxd4 {[%emt 0:00:07]} Nf6 {[%emt 0:00:04]} 5. Nc3 {[%emt 0:00:07]} a6 {[%emt 0:00:02]} 6. h3 {[%emt 0:01:10]} e5 {[%emt 0:00:07]} 7. Nde2 {[%emt 0:00:08]} h5 {[%emt 0:00:06]} 8. Nd5 {[%emt 0:02:19]} Nxe4 {[%emt 0:07:48]} 9. Be3 {[%emt 0:00:19]} Nd7 {[%emt 0:00:59]} 10. c4 {[%emt 0:00:35]} Be7 {[%emt 0:07:05]} 11. Qc2 {[%emt 0:00:29]} Nef6 {[%emt 0:03:09]} 12. Nec3 {[%emt 0:01:38]} Nxd5 {[%emt 0:16:52]} 13. Nxd5 {[%emt 0:00:07]} O-O {[%emt 0:01:42]} 14. Be2 {[%emt 0:05:13]} Bg5 {[%emt 0:05:24]} 15. Bxh5 {[%emt 0:12:17]} Bxe3 {[%emt 0:00:16]} 16. Nxe3 {[%emt 0:00:04]} Nc5 {[%emt 0:00:57]} 17. Bf3 {[%emt 0:08:16]} Ne6 {[%emt 0:06:34]} 18. Qd2 {[%emt 0:00:52]} Nd4 {[%emt 0:09:06]} 19. Bd5 {[%emt 0:00:52]} Rb8 {[%emt 0:03:16]} 20. O-O {[%emt 0:03:07]} b5 {[%emt 0:07:02]} 21. Rad1 {[%emt 0:15:28]} bxc4 {[%emt 0:02:57]} 22. Kh1 {[%emt 0:01:51]} Be6 {[%emt 0:06:22]} 23. Bxe6 {[%emt 0:00:43]} fxe6 {[%emt 0:00:06]} 24. Nxc4 {[%emt 0:00:04]} Rf4 {[%emt 0:00:15]} 25. b3 {[%emt 0:01:28]} Qe7 {[%emt 0:01:39]} 26. Qa5 {[%emt 0:05:09]} Rbf8 {[%emt 0:02:00]} 27. Qxa6 {[%emt 0:14:31]} Rxf2 {[%emt 0:00:19]} 28. Rxf2 {[%emt 0:00:40]} Rxf2 {[%emt 0:00:03]} 29. Nxd6 {[%emt 0:00:52]} Qg5 {[%emt 0:04:57]} 30. Qa8+ {[%emt 0:02:18]} Rf8 {[%emt 0:02:47]} 31. Qe4 {[%emt 0:00:33]} Qg3 {[%emt 0:01:50]} 32. Qg4 {[%emt 0:12:06]} Qf2 {[%emt 0:00:39]} 33. Ne4 {[%emt 0:10:23]} Qxa2 {[%emt 0:00:46]} 34. Qg6 {[%emt 0:00:21]} Qxb3 {[%emt 0:02:46]} 35. Rd3 {[%emt 0:00:58]} Qb1+ {[%emt 0:01:39]} 36. Kh2 {[%emt 0:00:08]} Qf1 {[%emt 0:00:47]} 37. Rg3 {[%emt 0:02:02]} Qf7 {[%emt 0:00:10]} 38. Qg4 {[%emt 0:00:16]} Nf5 {[%emt 0:00:42]} 39. Rf3 {[%emt 0:00:27]} Qe8 {[%emt 0:00:58]} 40. Qg5 {[%emt 0:00:27]} Qa8 {[%emt 0:01:15]} 41. Qg4 {[%emt 0:31:24]} Qe8 {[%emt 0:06:53]} 42. Ng5 {[%emt 0:00:00]} Qg6 {[%emt 0:01:06]} 43. h4 {[%emt 0:00:00]} Nd4 {[%emt 0:01:35]} 44. Rxf8+ {[%emt 0:00:00]} Kxf8 {[%emt 0:00:06]} 45. Qg3 {[%emt 0:00:00]} Qf5 {[%emt 0:01:43]} 46. Qa3+ {[%emt 0:00:00]} Kg8 {[%emt 0:00:37]} 47. Qa8+ {[%emt 0:00:00]} Qf8 {[%emt 0:00:09]} 48. Qb7 {[%emt 0:00:00]} Qf4+ {[%emt 0:00:41]} 49. Kh3 {[%emt 0:00:00]} Qf5+ {[%emt 0:00:48]} 50. Kh2 {[%emt 0:00:00]} Qf4+ {[%emt 0:00:33]} 51. Kh3 {[%emt 0:00:00]} Qf5+ {[%emt 0:00:29]} 52. Kh2 {[%emt 0:00:00]} Qf4+ {[%emt 0:00:12]} 1-0